Cogmind - Beta 11.1 @@@ ROGUE MODE // 2022.05.22 @ 21:40:28 Player: darki Result: Destroyed by 8R-AWN with 8R-AWN's Boregun Performance ------------- Evolutions (0) 0 Regions Visited (3) 600 Robots Destroyed (15) 75 Value Destroyed (355) 355 Prototype IDs (23) 460 Alien Tech Used (0) 0 Bonus (300) 300 TOTAL SCORE: 1790 Bonus ------- Aligned with FarCom 300 Cogmind --------- Core Integrity 0/250 Matter 300/300 Energy 100/100 System Corruption 0% Temperature Cool (0) Movement Core (50) Location -10/Exiles Parts ------- > --- POWER (1) -------- (None) > --- PROPULSION (2) --- (None) > --- UTILITY (2) ------ (None) > --- WEAPON (2) ------- (None) > --- INVENTORY (5) ---- (None) Peak State ------------ > --- POWER ------------ Ion Engine > --- PROPULSION ------- Aluminum Leg Aluminum Leg > --- UTILITY ---------- Heat Sink Small Storage Unit > --- WEAPON ----------- Light Assault Rifle Light Assault Rifle > --- INVENTORY -------- Army-in-a-Box Mining Claw [Rating: 12] Favorites ----------- Power Ion Engine Engine Ion Engine Power Core Light Nuclear Core Propulsion Aluminum Leg Leg Aluminum Leg Utility Heat Sink Device Heat Sink Storage Small Storage Unit Protection Utility Shielding Weapon Light Assault Rifle Energy Gun Small Laser Ballistic Gun Light Assault Rifle Build | -11 -10 -10 -10 ------- Run | Scr Mat Min Exi Slots Evolved . | . . . . Power . | . . . . Propulsion . | . . . . Utility . | . . . . Weapon . | . . . . Parts Attached 14 | . 10 . 4 Power 3 | . 2 . 1 Engine 2 | . 1 . 1 Core 1 | . 1 . . Reactor . | . . . . Propulsion 5 | . 5 . . Treads . | . . . . Leg 5 | . 5 . . Wheel . | . . . . Hover . | . . . . Flight . | . . . . Utility 3 | . 2 . 1 Device 1 | . 1 . . Storage 1 | . . . 1 Processor . | . . . . Hackware . | . . . . Protection 1 | . 1 . . Artifact . | . . . . Weapon 3 | . 1 . 2 Energy Gun . | . . . . Energy Cannon . | . . . . Ballistic Gun 3 | . 1 . 2 Ballistic Cannon . | . . . . Launcher . | . . . . Special Weapon . | . . . . Impact Weapon . | . . . . Slashing Weapon . | . . . . Piercing Weapon . | . . . . Special Melee Weapon . | . . . . Unidentified Prototypes . | . . . . Parts Lost 4 | . 1 . 3 Power 1 | . 1 . . Propulsion 2 | . . . 2 Utility 1 | . . . 1 Weapon . | . . . . Highest Loss Streak 2 | . 1 . 2 To Critical Strikes . | . . . . Average Slot Usage (%) 95 | . 94 100 95 Engine 10 | . 5 14 13 Core 2 | . 7 . . Leg 27 | . 28 28 26 Device 11 | . 7 14 14 Storage 13 | . 14 14 13 Energy Gun 3 | . 8 . . Ballistic Gun 23 | . 19 28 26 Naked Turns 2 | . . . 2 Heaviest Build 28 | 10 14 12 28 Greatest Support 20 | 20 20 20 20 Greatest Overweight (x) 2 | . . . 2 Average Overweight (x) . | . . . . Largest Inventory Capacity 15 | . 8 8 15 Average Capacity 10 | . 8 8 12 Most Carried 9 | . 8 8 9 Average Carried 7 | . 7 7 7 Final Capacity 8 | 8 8 8 5 Final Carried 8 | 6 8 8 . Class Distribution -------------------- 79% | Scavenger-Mutant 20% | Mutant Dominant Class ---------------- Scavenger-Mutant | -10/Materials Scavenger-Mutant | -10/Mines Scavenger-Mutant | -10/Exiles Resources | -11 -10 -10 -10 ----------- Run | Scr Mat Min Exi Matter Collected 475 | 200 211 26 38 Remotely . | . . . . Salvage Created 458 | . 395 63 . Parts 34 | . 26 8 . Haulers Intercepted . | . . . . Recyclers Shooed 1 | . 1 . . Parts Field Recycled . | . . . . Retrieved Matter . | . . . . Parts Self-Destructed . | . . . . Prevented . | . . . . Kills | -11 -10 -10 -10 ------- Run | Scr Mat Min Exi Combat Hostiles Destroyed 15 | . 11 4 . Guns 15 | . 11 4 . Classes Destroyed 2 | . 2 . . Swarmer 7 | . 3 4 . Grunt 8 | . 8 . . Best Kill Streak 6 | . 6 4 . Combat Bots Only 6 | . 6 4 . Max Kills in Single Turn 2 | . 1 2 . Gunslinging 1 | . . 1 . Exploded . | . . . . Melee . | . . . . Uniques/NPCs Destroyed . | . . . . Combat | -11 -10 -10 -10 -------- Run | Scr Mat Min Exi Damage Taken 1039 | . 611 89 339 Core 270 | . 141 18 111 Absorbed by Shields . | . . . . Redirected to Shielding 3 | . 3 . . Core Remaining (%) 100 | 100 . . . Volleys Fired 60 | . 52 4 4 Largest 2 | . 2 2 2 Hottest 60 | . 60 40 40 Shots Fired 120 | . 104 8 8 Gun 120 | . 104 8 8 Cannon . | . . . . Launcher . | . . . . Special . | . . . . Kinetic 91 | . 75 8 8 Thermal 29 | . 29 . . Explosive . | . . . . Electromagnetic . | . . . . Robot Hit Streak 10 | . 6 10 4 Robot Miss Streak 4 | . 4 . 2 Penetration Max . | . . . . Secondary Targets 2 | . . 2 . Max Gunslinging Chain 1 | . . 1 . Shots Hit Robots 76 | . 64 7 5 Core Hits 31 | . 24 4 3 Critical Kills . | . . . . Critical Parts Destroyed 1 | . 1 . . Critical Strikes 1 | . 1 . . Destroy 1 | . 1 . . Melee Attacks . | . . . . Impact . | . . . . Slashing . | . . . . Piercing . | . . . . Sneak Attacks . | . . . . Combat Hostiles . | . . . . Follow-up Attacks . | . . . . Damage Inflicted 761 | . 644 76 41 Guns 761 | . 644 76 41 Cannons . | . . . . Explosions . | . . . . Melee . | . . . . Ramming . | . . . . Kinetic 575 | . 458 76 41 Thermal 186 | . 186 . . Explosive . | . . . . Electromagnetic . | . . . . Impact . | . . . . Slashing . | . . . . Piercing . | . . . . Highest Corruption . | . . . . Average Corruption . | . . . . Corruption Purged . | . . . . Corruption Blocked . | . . . . Overload Shots . | . . . . Overflow Damage . | . . . . Projectiles . | . . . . Explosions . | . . . . Melee . | . . . . Knockbacks . | . . . . Impact . | . . . . Kinetic . | . . . . Secondary . | . . . . Self-Inflicted Damage . | . . . . Shots . | . . . . Rammed . | . . . . Targets Rammed . | . . . . Kicked . | . . . . Crushed . | . . . . Highest Temperature 252 | . 252 . . Average Temperature 101 | . 101 . . Received Heat Transfer 304 | . 264 . 40 Effects 2 | . 2 . . Energy Bleed 1 | . 1 . . Interference 1 | . 1 . . Siege Activations . | . . . . Robots Corrupted . | . . . . Combat Hostiles . | . . . . Parts Fried . | . . . . Impact Corruptions . | . . . . Robots Melted . | . . . . Combat Hostiles . | . . . . Parts Melted 1 | . 1 . . Heat Transferred 425 | . 425 . . Parts Sabotaged . | . . . . Parts Stolen . | . . . . Parts Stripped . | . . . . Power Chain Reactions . | . . . . Missiles Intercepted . | . . . . Alert | -11 -10 -10 -10 ------- Run | Scr Mat Min Exi Peak Influence 188 | . 188 157 . Initial 67 | . . 67 . Average 94 | . 98 80 . Maximum Alert Level . | . . . . Low Security (%) 100 | . 100 100 . Level 1 . | . . . . Level 2 . | . . . . Level 3 . | . . . . Level 4 . | . . . . Level 5 . | . . . . High Security . | . . . . Max Security . | . . . . Squads Dispatched 3 | . 3 . . Investigation 1 | . 1 . . Extermination . | . . . . Reinforcement 2 | . 2 . . Assault . | . . . . Garrison . | . . . . Intercept . | . . . . Searches Triggered . | . . . . Construction Impeded . | . . . . Haulers Reinforced . | . . . . Active Scanning Responses . | . . . . Cargo Convoy Interrupts . | . . . . Stealth | -11 -10 -10 -10 --------- Run | Scr Mat Min Exi Distress Signals 2 | . 2 . . Communications Jammed . | . . . . Distress Signals . | . . . . Times Spotted 32 | . 20 4 8 Peak Tracking Total 9 | . 6 4 9 Tactical Retreats 2 | . 2 . . Traps | -11 -10 -10 -10 ------- Run | Scr Mat Min Exi Traps Triggered . | . . . . Indirectly . | . . . . Trap Hack Attempts . | . . . . Triggered . | . . . . Disarmed . | . . . . Reprogrammed . | . . . . Reused 4 | . . . 4 Traps Extracted . | . . . . Installed 4 | . . . 4 Triggered . | . . . . Most Traps Carried 4 | . . 4 4 Machines | -11 -10 -10 -10 ---------- Run | Scr Mat Min Exi Machines Disabled . | . . . . Max in Single Turn . | . . . . Machines Sabotaged . | . . . . Garrisons Compromised . | . . . . Overloaded Fab Kills . | . . . . Hacking | -11 -10 -10 -10 --------- Run | Scr Mat Min Exi Machines Accessed 5 | . 4 . 1 Terminals 3 | . 3 . . Fabricators . | . . . . Repair Stations . | . . . . Recycling Units 1 | . 1 . . Scanalyzers . | . . . . Garrison Access . | . . . . Total Hacks 7 | . 6 . 1 Successful 6 | . 5 . 1 Failed 1 | . 1 . . Catastrophic . | . . . . Database Lockouts . | . . . . Manual 5 | . 4 . 1 Terminals 5 | . 5 . . Fabricators . | . . . . Repair Stations . | . . . . Recycling Units 1 | . 1 . . Scanalyzers . | . . . . Garrison Access . | . . . . Terminal Hacks 5 | . 4 . 1 Branch Access Points 1 | . 1 . . Alert Level 2 | . 2 . . Zone Layout 1 | . 1 . . EX-Prototype ID Bank 1 | . . . 1 Fabricator Hacks . | . . . . Repair Station Hacks . | . . . . Recycling Unit Hacks . | . . . . Scanalyzer . | . . . . Garrison Access Hacks . | . . . . Unauthorized Hacks 1 | . 1 . . Terminals . | . . . . Fabricators . | . . . . Repair Stations . | . . . . Recycling Units 1 | . 1 . . Tunnel 1 | . 1 . . Scanalyzers . | . . . . Garrison Access . | . . . . Data Cores Recovered . | . . . . Used . | . . . . Hacking Detections 1 | . 1 . . Full Trace Events . | . . . . Feedback Events . | . . . . Feedback Blocked . | . . . . Robot Schematics Acquired . | . . . . Robots Built . | . . . . Authchips . | . . . . Time . | . . . . Total Robot Build Rating . | . . . . Part Schematics Acquired . | . . . . Parts Built . | . . . . Authchips . | . . . . Time . | . . . . Total Part Build Rating . | . . . . Parts Repaired . | . . . . Time . | . . . . Parts Recycled . | . . . . Recycled Matter . | . . . . Retrieved Matter . | . . . . Retrieved Components . | . . . . Parts Scanalyzed . | . . . . Part Schematics Acquired . | . . . . Parts Damaged . | . . . . Bothacking | -11 -10 -10 -10 ------------ Run | Scr Mat Min Exi Used RIF Installer . | . . . . Robots Hacked . | . . . . Non-combat . | . . . . Combat . | . . . . Robot Hacks Applied . | . . . . Relay Couplers Released . | . . . . Fabnet Peak Effective % . | . . . . Robots Rewired . | . . . . Allies Hacked . | . . . . Hacks Repelled . | . . . . Allies | -11 -10 -10 -10 -------- Run | Scr Mat Min Exi Total Allies . | . . . . Largest Group . | . . . . Highest-Rated Group . | . . . . Highest-Rated Ally . | . . . . Total Orders . | . . . . Ally Attacks 24 | . . . 24 Total Damage 1151 | . . . 1151 Kills 7 | . . . 7 Allies Corrupted . | . . . . Allies Melted . | . . . . Turrets Deployed 3 | . . . 3 Intel | -11 -10 -10 -10 ------- Run | Scr Mat Min Exi Robot Analysis Total . | . . . . Derelict Logs Recovered 1 | . . 1 . Drone Launches . | . . . . Drone Recoveries . | . . . . Exploration | -11 -10 -10 -10 ------------- Run | Scr Mat Min Exi Turns Passed 1775 | . 671 226 878 Spaces Moved 1063 | 1 368 172 522 Core 21 | . . . 21 Treads . | . . . . Legs 1042 | 1 368 172 501 Wheels . | . . . . Hover . | . . . . Flight . | . . . . Fastest Speed 50 | 120 120 120 50 Average Speed 136 | 120 120 120 154 Slowest Speed 260 | 120 120 120 260 Overloaded Moves . | . . . . Propulsion Burnouts . | . . . . Robots Hopped . | . . . . Cave-ins Triggered . | . . . . Exploration Rate (%) 47 | 2 57 39 90 Regions Visited 3 Branch Regions 2 Pre-discovered Areas 1 | . 1 . . Known Exits Taken 1 | . 1 . . Unknown Exits Taken 2 | 1 . 1 . Scrap Searched 1 | . . 1 . Spaces Dug . | . . . . Terrain Destroyed . | . . . . Melee . | . . . . Projectile . | . . . . AOE . | . . . . Terrain Rammed . | . . . . Walls Destroyed . | . . . . Machines Disabled . | . . . . Actions | -11 -10 -10 -10 --------- Run | Scr Mat Min Exi Total 1286 | . 505 186 595 Wait 106 | . 62 3 41 Move 1060 | . 367 171 522 Hop . | . . . . Pick Up 13 | . 4 4 5 Fast Attach 5 | . 5 . . Attach 3 | . . . 3 Detach . | . . . . Swap 6 | . 5 . 1 Drop 29 | . 10 4 15 Fire 60 | . 52 4 4 Melee . | . . . . Ram . | . . . . Kick . | . . . . Crush . | . . . . Escape Stasis . | . . . . Rewire . | . . . . Trap 4 | . . . 4 Miscellaneous . | . . . . Route ------- -11/Scrapyard -10/Materials (discovered 3 exits: [*Mat x2] / *Min) -10/Mines -10/Exiles (discovered 1 exit: [*Min]) History --------- Turn | Location | Event 1 | -11/Scrapyard | Discovered new exit (range 0) 1 | -11/Scrapyard | Entered Materials 308 | -10/Materials | Identified exit to Mines 394 | -10/Materials | Discovered new exit (range 3) 508 | -10/Materials | Core integrity fell below 50% 556 | -10/Materials | Discovered new exit (range 5) 672 | -10/Materials | Entered Mines 704 | -10/Mines | Learned Materials emergency access door positions 714 | -10/Mines | Met a Derelict bent on vengeance 820 | -10/Mines | Build established: Scavenger-Mutant 832 | -10/Mines | Found a hidden stash of uninstalled traps 893 | -10/Mines | Deemed a non-threat by the Exiles lab entrance 893 | -10/Mines | Discovered new exit (range 5) 898 | -10/Mines | Entered Exiles 931 | -10/Exiles | Met 8R-AWN 946 | -10/Exiles | Met EX-HEX 985 | -10/Exiles | Met EX-BIN 1000 | -10/Exiles | Aligned with FarCom system 1002 | -10/Exiles | Given EX-Vault access code 1032 | -10/Exiles | Opened EX-Vault 1039 | -10/Exiles | DAS Turret deployed 1082 | -10/Exiles | Found Deploy-a-Sentry 1088 | -10/Exiles | DAS Turret deployed 1089 | -10/Exiles | Found Deploy-a-Sentry 1098 | -10/Exiles | DAS Turret deployed 1098 | -10/Exiles | Found Army-in-a-Box 1123 | -10/Exiles | Warned to stay clear of 0b10 Research branches 1226 | -10/Exiles | Met EX-DEC 1263 | -10/Exiles | Visited The Gauntlet 1555 | -10/Exiles | Discovered new exit (range 14) 1686 | -10/Exiles | Attacked by the Exiles 1723 | -10/Exiles | Core integrity fell below 20% 1776 | -10/Exiles | Destroyed by 8R-AWN with 8R-AWN's Boregun Last Messages --------------- 01732_ as-44040 destroyed. 01732_ Destroyed Asb. Hover Unit. 01734_ Destroyed Asb. Heavy Rifle. 01734_ as-64619 destroyed. 01744_ Destroyed Prototype Protection. 01746_ HV Slug penetrates DAS Turret. 01746_ DAS Turret suffers critical hit (Destroy). 01746_ DAS Turret destroyed. 01748_ HV Slug penetrates Wall. 01750_ HV Slug penetrates DAS Turret. 01750_ DAS Turret suffers critical hit (Destroy). 01750_ DAS Turret destroyed. 01754_ HV Slug penetrates DAS Turret. 01754_ DAS Turret suffers critical hit (Destroy). 01754_ DAS Turret destroyed. 01769_ Penetrated by HV Slug. 01769_ Acquired 38 matter. 01771_ Penetrated by HV Slug. 01774_ Heat Sink destroyed. 01776_ Penetrated by HV Slug. Map ----- +----------------------------------------------------+ | | | | | | | | | | | | | | | | | | | | | | | | | | | | | | | | | | | | | | | | | | | | | | | ?????????????????????#########???????????????????? | | ?????????????????????# * #???????????????????? | | ?????????????????????# [ @% !#???????????????????? | | ?????????????????????# % #???????????????????? | | ?????????????????????# %X#???????????????????? | | ?????????????????????## ##???????????????????? | | ?????????????????????#X #????????????????????? | | ?????????????????????## #????????????????????? | | ??????????????????????# #????????????????????? | | ??????????????????????# g#???####?????????????? | | ??????????????????????# ;#?"""""#????????????? | | ??????????????????????# ;# """#????????????? | | ??????????????????????# [ X""#????????????? | | ??????????????????????# ## """#????????????? | | ???????????????#####?##![ #?""""""#????????????? | | ???????????????""""""#/![ #??#####?????????????? | | ???????????????"""" ##!* #????????????????????? | | ??????????????#""X" #????????????????????? | | ??????????????#" #????????????????????? | | ??????????????#" ## #????????????????????? | | ??????????????#""""""?# #?#########??????????? | | ??????????????##"###??# #?#"""""""#??????????? | | ??????????????? ??????# #?#"""""""#??????????? | | ??????????????????????# %%%#?#"""""""#??????????? | | ?????????????????????## %%%%###"" """"#??????????? | | ?????????????????????#" %% """"#??????????? | | ?????????????????????#" % """#??????????? | +----------------------------------------------------+ Best States ------------- Heat Dissipation 35 Energy Generation 14 Energy Capacity 250 Matter Stores 300 Matter Capacity 300 Sight Range 16 Terrain Scan Density 10 Utility Shielding 33 Evasion (%) 55 Item Schematics ----------------- None Robot Schematics ------------------ None Fabricated ------------ Nothing Alien Tech Used ----------------- None Achievements -------------- None Challenges ------------ None Game ------ Seed SkeletonAerolevAutogun Manual? 0 Play Time 00:16:13 Cumulative 74.4 hours Start 2022.05.22 @ 21:29:05 End 2022.05.22 @ 21:40:28 Sessions 1 Manual Loads 0 Difficulty Rogue Special Mode None Game No. 84 Rogue 84 Adventurer 0 Explorer 0 Win Type - Total 0 Types 0/0/0/0/0/0/0/0/0 Lore% 40 Gallery% 52 Achievement% 39 Wizard Run 0 Options --------- ASCII 0 Keyboard 0 Movement Mouse Keybinds 0 Fullscreen 1 Font 18/SmallcapsGlow Map View 76x50 Tactical HUD 1 Map Filters NONE Filters NONE Steam 1 RUN: 6d15f280-410d-4fbd-b21a-496225d6780d